bitfinex/quotes_ETHUSD_20250130
["timestamp","ask_amount","ask_price","bid_price","bid_amount"]
[1738248288156,3.07081,3256.5,3256.2,0.55]
[1738248288458,3.07081,3256.5,3256.1,0.7744]
[1738248288657,3.07103,3256.3,3256.1,0.7744]
[1738248289010,3.07103,3256.3,3256.2,0.28743119]
[1738248289211,3.07081,3256.5,3256.2,0.28743119]
[1738248289414,3.07095,3256.4,3256.2,0.28743119]
[1738248289962,3.07074,3256.6,3256.2,0.28743119]
[1738248290120,3.07081,3256.5,3256.2,0.28743119]
[1738248290829,3.07081,3256.5,3256.3,0.22993934]
[1738248291227,3.07059,3256.7,3256.3,0.22993934]
[1738248291660,3.07069,3256.6,3256.4,0.28743119]
[1738248292219,3.07078,3256.5,3256.4,0.28743119]
[1738248292445,0.79316618,3256.9,3256.4,0.28743119]
[1738248292630,0.16715,3256.9,3256.5,0.8114]
[1738248292815,0.16715,3256.9,3256.8,3.62049]
[1738248293016,0.16715,3256.9,3256.8,4.289596]
[1738248293549,0.16715,3256.9,3256.8,5.03677685]
[1738248293747,0.16715,3256.9,3256.8,1.29718085]
[1738248294055,0.16715,3256.9,3256.8,1.52712019]
[1738248294226,0.16715,3256.9,3256.8,5.43011019]
[1738248294852,3.23755,3256.9,3256.8,0.97712019]
[1738248296428,3.23755,3256.9,3256.8,0.74718085]
[1738248296635,4.175365,3256.9,3256.8,0.74718085]
[1738248296869,3.07093,3256.4,3256.2,0.55]
[1738248297697,3.07097,3256.3,3256.2,0.55]
[1738248297898,3.07093,3256.4,3256.1,0.22993934]
[1738248297899,3.07106,3256.2,3256.1,0.22993934]
[1738248298305,3.07106,3256.2,3256.1,0.55]
[1738248299212,3.07106,3256.2,3256.1,0.22977841]
[1738248300202,3.992355,3256.2,3256.1,0.22977841]
[1738248300407,4.807155,3256.2,3256.1,0.22977841]
[1738248300616,4.807155,3256.2,3255.8,0.45974966]
[1738248300617,3.07125,3256.0,3255.9,0.22977841]
[1738248301893,3.07172,3255.5,3255.4,0.22977841]
[1738248302103,3.07162,3255.7,3255.4,0.22977841]
[1738248302263,3.07138,3255.9,3255.5,0.55]
[1738248302965,1.928165,3256.9,3255.7,0.55]
[1738248303184,3.07069,3256.6,3256.0,3.62124]
[1738248303370,3.07085,3256.5,3256.0,0.55]
[1738248303566,0.99035,3256.9,3256.0,0.55]
[1738248303567,0.16715,3256.9,3256.4,6.62082]
[1738248303875,0.16715,3256.9,3256.8,7.42029]
[1738248304812,0.16715,3256.9,3256.8,7.65006841]
[1738248304974,0.16715,3256.9,3256.8,9.00931269]
[1738248305713,0.16715,3256.9,3256.8,5.93882269]
[1738248305897,0.16715,3256.9,3256.8,1.57957841]
[1738248306212,0.16715,3256.9,3256.8,2.03932807]
[1738248307999,0.16715,3256.9,3256.8,1.57957841]
[1738248308982,0.16715,3256.9,3256.8,8.15801167]
[1738248309170,0.16715,3256.9,3256.8,11.12730984]
[1738248309371,0.16715,3256.9,3256.8,12.59307279]
[1738248309698,0.16715,3256.9,3256.8,13.05282245]
[1738248310825,0.16715,3256.9,3256.8,13.36812245]
[1738248310977,0.8072,3258.6,3258.0,0.55]
[1738248311166,3.0689,3258.5,3257.9,3.8299]
[1738248311371,3.07405,3258.4,3257.9,0.8299]
[1738248311570,0.005,3258.4,3257.9,0.8299]
[1738248311807,0.005,3258.4,3258.0,0.55]
[1738248312044,0.005,3258.4,3258.0,3.61935]
[1738248312198,0.005,3258.4,3258.3,0.55]
[1738248312842,0.005,3258.4,3258.3,0.58068782]
[1738248313198,0.005,3258.4,3258.3,0.55]
[1738248314045,0.005,3258.4,3258.3,3.61908]
[1738248314252,0.005,3258.4,3258.3,0.55]
[1738248314434,0.005,3258.4,3258.0,4.121224]
[1738248314435,3.07404,3258.4,3258.0,1.051874]
[1738248314745,3.07404,3258.4,3257.9,0.8299]
[1738248314907,0.005,3258.4,3258.0,0.55]
[1738248315103,3.06913,3258.3,3258.0,0.55]
[1738248316108,0.005,3258.4,3257.9,0.55]
[1738248316302,3.0691,3258.3,3257.9,0.55]
[1738248316538,0.005,3258.4,3257.9,0.55]
[1738248316733,3.074,3258.4,3257.9,1.56664014]
[1738248317055,3.06933,3258.1,3257.6,3.775]
[1738248317350,3.06944,3258.0,3257.6,0.775]
[1738248317502,3.06933,3258.1,3257.3,6.54725143]
[1738248317503,3.06946,3257.9,3257.3,6.54725143]
[1738248317841,3.06946,3257.9,3257.4,0.55]
[1738248318050,3.06946,3257.9,3257.3,6.54724143]
[1738248318352,3.06927,3258.1,3257.4,0.55]
[1738248318905,3.06944,3258.0,3257.4,0.55]
[1738248319205,3.06927,3258.1,3257.5,0.03069535]
[1738248319432,0.005,3258.4,3257.9,3.06939]
[1738248319605,0.005,3258.4,3258.0,0.55]
[1738248320027,3.0693,3258.1,3257.7,0.7709]
[1738248320229,3.0693,3258.1,3257.5,1.01978168]
[1738248320230,3.06946,3257.9,3257.4,3.89835]
[1738248320436,3.06946,3257.9,3257.4,3.8285]
[1738248320607,3.06937,3258.0,3257.5,0.55]
[1738248321556,3.06947,3257.9,3257.5,0.55]
[1738248321917,3.0701,3257.3,3256.8,0.8068]
[1738248322134,3.06986,3257.5,3256.8,0.8068]
[1738248322471,0.7502,3257.4,3256.5,1.16560521]
[1738248322606,3.07019,3257.2,3256.5,4.23636521]
[1738248322806,3.06994,3257.4,3256.6,0.03070366]
[1738248323108,3.07034,3257.0,3256.5,1.16560521]
[1738248323507,3.07034,3257.0,3256.6,0.55]
[1738248324127,3.07034,3257.0,3256.6,0.77873471]
[1738248324751,3.07023,3257.1,3256.6,0.77873471]
[1738248325307,1.65836535,3257.8,3257.0,3.07021]
[1738248325308,3.06974,3257.6,3257.0,3.07021]
[1738248325532,0.7794,3258.1,3257.4,0.55]
[1738248325850,3.06987,3257.5,3257.1,0.362021]
[1738248326756,3.0698,3257.6,3257.1,0.362021]
[1738248327885,3.06984,3257.5,3257.1,0.362021]
[1738248328023,0.7794,3258.1,3257.0,0.55]
[1738248328223,3.06982,3257.6,3257.0,0.55]
[1738248329320,0.8106,3257.5,3256.4,3.47724143]
[1738248329519,3.07031,3257.0,3256.2,0.7668]
[1738248329873,3.06993,3257.4,3256.9,0.55]
[1738248330158,3.07002,3257.3,3257.0,0.70977214]
[1738248330360,0.7992,3258.1,3256.6,0.7866]
[1738248330361,3.07032,3257.0,3256.6,0.7866]
[1738248330518,3.07041,3256.9,3256.6,0.7866]
[1738248330732,3.07032,3257.0,3256.6,0.7866]
[1738248330733,3.07038,3257.0,3256.6,0.7866]
[1738248331381,3.07015,3257.2,3256.6,0.7866]
[1738248331564,3.07015,3257.2,3256.7,0.55]
[1738248331949,3.07037,3257.0,3256.7,1.01954052]
[1738248332282,3.07037,3257.0,3256.5,0.81680775]
[1738248332437,3.07016,3257.2,3256.7,0.22917706]
[1738248332832,3.07033,3257.0,3256.7,0.22917706]
[1738248333239,6.14036,3257.2,3256.7,0.22917706]
[1738248333488,3.07016,3257.2,3256.7,0.22917706]
[1738248333645,3.07016,3257.2,3256.8,0.38498571]
[1738248333988,3.06993,3257.4,3256.9,0.55]
[1738248334189,3.06976,3257.6,3257.1,0.55]
[1738248334397,3.06895,3258.5,3257.1,0.55]
[1738248334398,3.06983,3257.5,3257.1,0.55]
[1738248334540,3.07004,3257.3,3257.1,0.55]
[1738248334887,3.07004,3257.3,3256.8,4.0914042]
[1738248334888,3.07021,3257.1,3256.8,0.61416277]
[1738248335086,3.07021,3257.1,3256.8,0.22917706]
[1738248335258,3.07004,3257.3,3256.8,0.22917706]
[1738248335580,3.06993,3257.4,3256.8,0.55]
[1738248335887,3.84658,3257.5,3256.8,0.55]
[1738248335888,3.0701,3257.3,3256.8,0.55]
[1738248336257,3.07008,3257.3,3256.8,0.55]
[1738248336453,3.07012,3257.2,3256.8,1.03500725]
[1738248336672,3.06984,3257.5,3257.0,0.55]
[1738248336872,3.06969,3257.7,3257.0,0.55]
[1738248337044,3.06956,3257.8,3257.5,0.55]
[1738248337247,3.06941,3258.0,3257.5,0.55]
[1738248337562,3.06956,3257.8,3257.5,0.55]
[1738248337871,3.06941,3258.0,3257.5,0.55]
[1738248338242,3.06941,3258.0,3257.5,0.988772]
[1738248338439,0.005,3258.4,3257.5,0.988772]
[1738248338675,0.005,3258.4,3258.0,4.27264143]
[1738248338904,0.005,3258.4,3258.1,0.55]
[1738248339189,3.07405,3258.4,3257.7,6.06957]
[1738248339349,3.07405,3258.4,3257.8,5.14953392]
[1738248339690,0.005,3258.4,3258.1,0.55]
[1738248339892,0.005,3258.4,3258.1,3.61924]
[1738248340189,0.005,3258.4,3258.2,0.55]
[1738248340358,0.005,3258.4,3258.3,4.41448]
[1738248340554,0.005,3258.4,3258.3,4.85899652]
[1738248341142,0.005,3258.4,3258.3,1.78991652]
[1738248341345,0.005,3258.4,3258.3,1.3454]
[1738248342561,0.005,3258.4,3258.3,1.57491779]
[1738248343164,0.005,3258.4,3258.3,4.64399779]
[1738248343363,0.005,3258.4,3258.3,7.67468481]
[1738248343599,0.005,3258.4,3258.3,7.64399779]
[1738248343899,0.005,3258.4,3258.3,8.76111382]
[1738248344867,0.005,3258.4,3258.3,9.21911636]
[1738248346828,0.005,3258.4,3258.3,12.08476487]
[1738248347232,0.005,3258.4,3258.3,12.07546487]
[1738248347439,0.005,3258.4,3258.3,11.84594708]
[1738248347636,0.005,3258.4,3258.3,11.38794454]
[1738248348634,0.005,3258.4,3258.3,11.61686333]
[1738248349302,0.005,3258.4,3258.3,12.07469662]
[1738248353450,3.07399,3258.4,3258.3,0.68675208]
[1738248353847,0.005,3258.4,3258.3,1.23675208]
[1738248354508,0.005,3258.4,3258.3,0.22891879]
[1738248354704,3.86499,3258.4,3258.3,0.22891879]
[1738248355311,3.06927,3258.1,3258.0,0.22891879]
[1738248355913,0.796,3258.4,3258.1,0.55]
[1738248356119,0.005,3258.4,3258.1,3.61926]
[1738248356530,3.074,3258.4,3258.1,0.55]
[1738248356713,3.074,3258.4,3257.7,5.93528851]
[1738248356914,3.06916,3258.3,3257.8,3.0]
[1738248357234,3.06923,3258.2,3257.7,0.55]
[1738248357827,3.06928,3258.1,3257.7,0.55]
[1738248358115,3.06942,3258.0,3257.7,0.55]
[1738248358326,3.06917,3258.2,3257.7,0.55]
[1738248358554,3.06927,3258.1,3257.7,0.55]
[1738248358764,0.7868,3258.3,3257.9,0.55]
[1738248358920,3.06918,3258.2,3257.6,3.29862879]
[1738248359115,3.06927,3258.1,3257.6,3.29862879]
[1738248359461,0.005,3258.4,3257.9,0.55]
[1738248359627,0.005,3258.4,3258.3,0.55]
[1738248360173,0.005,3258.4,3258.3,3.61908]
[1738248360317,0.005,3258.4,3258.3,9.87732559]
[1738248360516,0.005,3258.4,3258.3,9.84663851]
[1738248360717,0.005,3258.4,3258.0,0.7521]
[1738248361135,3.0691,3258.3,3257.7,3.63254851]
[1738248361340,0.005,3258.4,3257.7,6.70212851]
[1738248361569,0.005,3258.4,3258.0,3.55]
[1738248361715,0.005,3258.4,3257.8,3.55]
[1738248362068,3.06917,3258.3,3257.8,3.55]
[1738248362356,3.07406,3258.4,3257.8,3.55]
[1738248362556,3.07406,3258.4,3257.9,0.55]
[1738248362858,3.07406,3258.4,3258.0,3.0]
[1738248362859,0.005,3258.4,3258.0,3.0]
[1738248363161,0.005,3258.4,3258.1,0.55]
[1738248363520,0.005,3258.4,3258.1,0.77890781]
[1738248363835,0.005,3258.4,3258.3,3.61908]
[1738248364169,0.005,3258.4,3258.3,4.31078778]
[1738248364321,0.005,3258.4,3258.1,0.22890781]
[1738248364522,3.07399,3258.4,3258.1,0.22890781]
[1738248364757,3.06917,3258.2,3258.1,0.22890781]
[1738248365326,3.06942,3258.0,3257.3,7.35802209]
[1738248365663,3.06946,3257.9,3257.4,3.0]
[1738248365821,3.06946,3257.9,3257.3,3.88296]
[1738248366017,3.06942,3258.0,3257.4,3.06992]
[1738248366471,3.06942,3258.0,3257.3,1.201296]
[1738248366624,3.06946,3257.9,3257.4,0.55]
[1738248367135,3.06942,3258.0,3257.4,3.61992]
[1738248367762,3.06946,3257.9,3257.6,0.55]
[1738248368064,3.06974,3257.6,3257.5,0.22951072]
[1738248368872,0.8297,3257.8,3257.5,0.22951072]
[1738248369186,3.06943,3258.0,3257.5,0.22951072]
[1738248369533,3.06948,3257.9,3257.5,0.22951072]
[1738248369762,3.06943,3258.0,3257.5,0.22951072]
[1738248369981,3.06943,3258.0,3257.5,3.29934072]
[1738248370480,3.06943,3258.0,3257.5,0.22951072]
[1738248371036,3.06948,3257.9,3257.6,0.22951072]
[1738248371241,3.06961,3257.8,3257.6,0.22951072]
[1738248371858,0.7999,3258.2,3257.6,0.22951072]
[1738248371859,3.0694,3258.0,3257.6,0.22951072]
[1738248372052,3.86914,3258.2,3257.6,0.22951072]
[1738248372288,3.06928,3258.1,3257.7,0.55]
[1738248372774,0.7999,3258.2,3257.6,0.22951072]
[1738248372980,3.06933,3258.1,3257.6,0.22951072]
[1738248373745,3.06956,3257.8,3257.6,0.22951072]
[1738248373942,3.06965,3257.7,3257.6,0.22951072]
[1738248374140,3.06929,3258.1,3257.6,0.22951072]
[1738248374381,3.0695,3257.9,3257.6,0.22951072]
[1738248374747,3.06929,3258.1,3257.6,0.22951072]
[1738248375555,3.06936,3258.0,3257.7,0.22951072]
[1738248377350,3.06936,3258.0,3257.8,0.22951072]
[1738248378996,3.06936,3258.0,3257.6,0.22951072]
[1738248379142,6.13881,3258.0,3257.6,0.22951072]
[1738248379344,3.06936,3258.0,3257.6,0.22951072]
[1738248380887,3.06936,3258.0,3257.7,0.22951072]
[1738248381886,3.82685,3257.8,3257.7,0.22951072]
[1738248382388,3.07004,3257.3,3256.7,0.35878317]
[1738248382571,3.07016,3257.2,3256.7,0.35878317]
[1738248383461,3.07016,3257.2,3256.8,0.55]
[1738248383663,6.14052,3257.1,3256.8,0.77982364]
[1738248383849,3.07012,3257.2,3256.8,0.77982364]
[1738248384173,3.07012,3257.2,3257.1,0.3073]
[1738248384378,3.07012,3257.2,3257.1,0.8573]
[1738248384550,3.07006,3257.3,3257.1,0.8573]
[1738248384751,3.06968,3257.7,3257.4,0.55]
[1738248385177,3.06983,3257.5,3257.4,0.55]
[1738248385595,3.06983,3257.5,3257.3,0.3073]
[1738248385895,3.06993,3257.4,3257.3,0.3073]
[1738248387248,3.06993,3257.4,3257.2,0.22982364]
[1738248387249,3.88362,3257.3,3257.2,0.53712364]
[1738248387606,3.88362,3257.3,3257.2,0.22982364]
[1738248387806,3.07086,3256.5,3256.1,2.86854196]
[1738248388104,3.07086,3256.5,3255.8,2.86854196]
[1738248388105,3.07115,3256.1,3255.8,2.86854196]
[1738248388303,0.8136,3256.5,3255.4,0.7889]
[1738248388501,3.07162,3255.7,3255.2,2.86854196]
[1738248388701,3.07162,3255.7,3255.1,3.07205]
[1738248388945,3.83517,3256.5,3255.7,3.07145]
[1738248389143,3.07089,3256.4,3255.8,4.03040702]
[1738248389446,3.07089,3256.4,3255.8,4.33770702]
[1738248389683,0.7643,3256.5,3255.8,7.10180702]
[1738248389803,3.07063,3256.7,3256.0,3.62119]
[1738248390512,3.07078,3256.5,3256.0,3.62119]
[1738248390713,3.07078,3256.5,3256.2,0.55]
[1738248390937,0.8294,3256.8,3256.2,3.62102]
[1738248391101,3.89992,3256.8,3256.2,3.62102]
[1738248391298,3.07061,3256.7,3256.2,0.55]
[1738248391603,3.07097,3256.3,3256.1,0.2294348]
[1738248391949,3.85946,3256.2,3256.1,0.2294348]
[1738248393736,3.07166,3255.6,3255.3,0.55]
[1738248393937,3.0718,3255.5,3255.3,0.55]
[1738248394442,3.07166,3255.6,3255.3,0.55]
[1738248394871,3.07176,3255.5,3255.1,0.2294348]
[1738248395066,3.07145,3255.8,3255.1,0.2294348]
[1738248395241,3.07145,3255.8,3255.2,0.55]
[1738248395242,3.07155,3255.7,3255.2,0.55]
[1738248396170,3.07169,3255.6,3255.0,3.62218]
[1738248397480,3.07145,3255.8,3255.2,0.55]
[1738248397647,3.378695,3255.7,3255.2,0.55]
[1738248397968,3.0717,3255.6,3255.0,0.55]
[1738248398170,3.07128,3256.0,3255.3,0.55]
[1738248398493,3.07109,3256.2,3255.6,0.55]
[1738248398677,3.07091,3256.4,3255.8,0.55]
[1738248398829,3.07091,3256.4,3255.8,3.62143]
[1738248399572,3.07097,3256.3,3255.8,0.55]
[1738248400630,3.07091,3256.4,3255.8,0.55]
[1738248400835,3.07107,3256.2,3255.8,0.55]
[1738248401571,3.84616,3256.8,3256.3,0.55]
[1738248401774,3.07056,3256.8,3256.3,0.55]
[1738248401937,3.07035,3257.0,3256.3,3.62095]
[1738248402836,3.07048,3256.9,3256.3,3.62095]
[1738248405108,3.07048,3256.9,3256.3,3.07095]
[1738248406248,3.07048,3256.9,3256.4,0.55]
[1738248406453,3.07036,3257.0,3256.6,0.55]
[1738248406747,3.07032,3257.0,3256.6,0.55]
[1738248406948,0.8201,3257.8,3256.6,0.55]
[1738248406949,3.07009,3257.3,3256.6,0.55]
[1738248407265,0.8201,3257.8,3256.5,0.8262]
[1738248407266,3.06957,3257.8,3257.1,4.43758]
[1738248407411,3.0698,3257.6,3257.1,0.8174]
[1738248407611,3.06985,3257.5,3257.1,0.8174]
[1738248407805,3.82452,3258.2,3256.5,0.819]
[1738248407806,3.06995,3257.4,3256.5,0.819]
[1738248408110,0.7553,3258.2,3257.1,4.03040702]
[1738248408111,0.7668,3258.2,3257.1,4.03040702]
[1738248408423,3.06927,3258.1,3257.5,0.55]
[1738248408631,3.06961,3257.8,3257.3,3.0]
[1738248409028,3.452967,3258.0,3257.4,0.55]
[1738248409313,3.06946,3257.9,3257.4,0.55]
[1738248410857,3.06929,3258.1,3257.5,3.06978]
[1738248414283,0.005,3258.4,3257.9,0.55]
[1738248414570,0.005,3258.4,3258.2,1.3596]
[1738248415329,0.005,3258.4,3257.8,3.0695]
[1738248415330,3.06937,3258.0,3257.8,0.8096]
[1738248415573,3.06937,3258.0,3257.5,3.8096]
[1738248415771,3.06937,3258.0,3257.6,0.55]
[1738248416856,3.06927,3258.2,3257.6,0.55]
[1738248417059,0.005,3258.4,3257.8,3.06949]
[1738248417366,0.005,3258.4,3257.7,2.86837024]
[1738248417367,0.005,3258.4,3258.2,0.55]
[1738248420419,0.005,3258.4,3258.2,3.61911]
[1738248420717,3.0692,3258.2,3257.8,0.8049]
[1738248420870,0.3862,3258.2,3257.8,0.8049]
[1738248421186,3.07405,3258.4,3257.9,0.55]
[1738248421187,3.06909,3258.3,3257.9,0.55]
[1738248421371,3.06936,3258.0,3257.9,0.55]
[1738248421802,3.06936,3258.0,3257.5,0.55]
[1738248422013,3.06936,3258.0,3257.4,6.76808024]
[1738248422713,3.06926,3258.2,3257.7,0.55]
[1738248422917,3.376196,3258.1,3257.5,3.61983]
[1738248423415,3.06926,3258.2,3257.5,0.55]
[1738248423619,0.005,3258.4,3257.7,2.86837024]
[1738248423787,3.06925,3258.2,3257.8,0.55]
[1738248424119,0.005,3258.4,3257.4,3.89966]
[1738248424325,3.06947,3257.9,3257.4,3.89968]
[1738248424470,0.005,3258.4,3258.0,0.55]
[1738248424946,0.005,3258.4,3258.0,3.61935]
[1738248425729,0.005,3258.4,3258.3,6.48745024]
[1738248425907,0.005,3258.4,3258.3,10.25235024]
[1738248426978,0.005,3258.4,3258.3,10.55965024]
[1738248427178,0.005,3258.4,3258.3,11.61523326]
[1738248427375,0.005,3258.4,3258.3,11.63023326]
[1738248427688,0.005,3258.4,3258.3,11.85867082]
[1738248427911,0.005,3258.4,3258.3,12.16597082]
[1738248428079,0.005,3258.4,3258.3,11.85867082]
[1738248428906,0.005,3258.4,3258.3,12.16597082]
[1738248429941,0.005,3258.4,3258.3,11.85867082]
[1738248430250,1e-05,3258.4,3258.3,11.85867082]
[1738248430534,1e-05,3258.4,3258.3,12.16597082]
[1738248430831,3.2345796,3260.1,3259.5,3.06794]
[1738248431039,3.2345796,3260.1,3259.7,0.55]
[1738248431040,0.1671596,3260.1,3259.7,0.55]
[1738248431529,0.1671596,3260.1,3259.7,3.61774]
[1738248431741,0.1671596,3260.1,3259.9,0.55]
[1738248431895,0.1671596,3260.1,3259.9,3.61756]
[1738248432637,0.1671596,3260.1,3259.9,0.55]
[1738248432935,0.1671596,3260.1,3259.8,2.86837024]
[1738248433120,3.2345796,3260.1,3259.9,0.55]
[1738248433437,3.06748,3260.0,3259.9,0.55]
[1738248434533,0.1671596,3260.1,3259.9,0.55]
[1738248436304,0.77475888,3260.1,3259.9,0.55]
[1738248436752,0.1671596,3260.1,3259.9,0.55]
[1738248436964,3.06748,3260.0,3259.5,2.86837024]
[1738248437249,3.06763,3259.9,3259.6,0.55]
[1738248437757,3.06763,3259.9,3259.5,2.86837024]
[1738248438058,3.06763,3259.9,3259.6,0.55]
[1738248438441,4.0128496,3260.1,3259.6,0.55]
[1738248438762,0.1671596,3260.1,3259.9,0.55]
[1738248439317,0.1671596,3260.1,3260.0,0.8197]
[1738248439518,0.1671596,3260.1,3260.0,4.43718]
[1738248440340,0.1671596,3260.1,3260.0,7.43718]
[1738248441744,0.1671596,3260.1,3260.0,4.3697]
[1738248441924,0.1671596,3260.1,3260.0,3.55]
[1738248442253,0.1671596,3260.1,3260.0,0.55]
[1738248442665,0.1671596,3260.1,3259.5,2.86837024]
[1738248443154,0.1671596,3260.1,3259.8,5.93604024]
[1738248443316,0.1671596,3260.1,3260.0,3.06748]
[1738248443514,0.1671596,3260.1,3260.0,3.61748]
[1738248445055,0.1671596,3260.1,3260.0,3.92478]
[1738248446032,0.1671596,3260.1,3260.0,4.15292367]
[1738248446228,0.1671596,3260.1,3260.0,5.54307106]
[1738248446432,0.1671596,3260.1,3260.0,5.57374083]
[1738248446633,0.1671596,3260.1,3260.0,5.54307106]
[1738248447662,0.1671596,3260.1,3260.0,3.60292367]
[1738248448365,0.1671596,3260.1,3260.0,4.15292367]
[1738248448565,0.1671596,3260.1,3260.0,1.08544367]
[1738248448719,3.06701,3260.5,3260.0,1.08544367]
[1738248449232,3.0672,3260.3,3260.0,0.77814367]
[1738248449457,0.8116,3260.3,3260.0,0.77814367]
[1738248450134,3.0666,3261.0,3260.5,3.067]
[1738248450336,3.89633,3261.2,3260.5,3.067]
[1738248450537,3.89633,3261.2,3260.6,3.61689]
[1738248450839,0.8299,3261.2,3260.8,0.55]
[1738248451163,0.8299,3261.2,3260.5,0.55]
[1738248451367,0.8299,3261.2,3260.7,6.48516024]
[1738248451539,0.8299,3261.2,3260.7,3.41837024]
[1738248451540,3.89627,3261.2,3260.7,3.41837024]
[1738248451738,3.0665,3261.1,3260.7,3.41837024]
[1738248451934,3.06655,3261.0,3260.5,3.617]
[1738248452464,3.06689,3260.7,3260.2,3.0]
[1738248452831,3.06689,3260.7,3260.3,0.55]
[1738248453163,3.06689,3260.7,3260.2,3.0]
[1738248453367,3.06689,3260.7,3260.3,0.55]
[1738248453552,3.06689,3260.7,3260.3,0.77851297]
[1738248453879,3.06648,3261.1,3260.5,0.55]
[1738248454169,3.06639,3261.2,3260.7,0.55]
[1738248454344,3.06636,3261.2,3260.7,0.55]
[1738248454667,3.06629,3261.3,3260.7,0.55]
[1738248454824,3.06629,3261.3,3260.7,3.41837024]
[1738248455271,3.06629,3261.3,3260.7,4.47389656]
[1738248455457,3.06629,3261.3,3260.7,3.92389656]
[1738248455664,3.06629,3261.3,3260.8,0.55]
[1738248455845,0.7667,3261.5,3260.8,0.55]
[1738248456178,0.00822266,3264.6,3261.3,6.48463024]
[1738248456179,3.88477,3261.9,3261.3,6.48463024]
[1738248456327,0.819,3261.9,3261.7,0.55]
[1738248456729,3.88471,3261.9,3261.7,0.55]
[1738248457371,3.88471,3261.9,3261.3,5.93463024]
[1738248457372,3.88471,3261.9,3261.4,0.55]
[1738248458242,3.88471,3261.9,3261.6,0.55]
[1738248458459,3.06588,3261.7,3261.6,0.55]
[1738248458996,3.06554,3262.1,3261.6,3.41837024]
[1738248459470,3.06561,3262.0,3261.6,3.41837024]
[1738248459676,3.06561,3262.0,3261.6,3.64688321]
[1738248460796,3.06588,3261.7,3261.6,0.77851297]
[1738248460961,3.06588,3261.7,3261.6,0.55]
[1738248461165,3.06626,3261.3,3261.2,0.7816]
[1738248461365,3.06591,3261.7,3261.0,2.86837024]
[1738248461696,3.06591,3261.7,3261.5,0.55]
[1738248461860,3.06571,3261.9,3261.5,0.55]
[1738248462067,6.13149,3261.9,3261.5,0.55]
[1738248462260,3.06571,3261.9,3261.5,0.55]
[1738248462786,3.06563,3262.0,3261.5,0.55]
[1738248463579,3.06539,3262.3,3261.5,3.61606]
[1738248463580,3.06554,3262.1,3261.5,3.61606]
[1738248463812,3.06554,3262.1,3261.7,0.55]
[1738248463952,3.06517,3262.5,3262.1,0.55]
[1738248464154,3.06498,3262.7,3262.1,0.55]
[1738248464596,3.06472,3263.0,3262.3,3.41837024]
[1738248464748,3.06472,3263.0,3262.4,3.06521]
[1738248464955,3.06472,3263.0,3262.5,0.55]
[1738248465303,3.06451,3263.2,3262.5,0.55]
[1738248465304,3.06451,3263.2,3262.6,3.63277024]
[1738248465452,3.06457,3263.1,3262.6,3.63277024]
[1738248465654,3.06472,3263.0,3262.6,3.63277024]
[1738248466386,3.06472,3263.0,3262.6,0.7644]
[1738248466702,3.06472,3263.0,3262.4,3.6152]
[1738248467254,3.06477,3262.9,3262.4,0.55]
[1738248467476,3.06472,3263.0,3262.4,0.55]
[1738248467892,3.06478,3262.9,3262.4,0.55]
[1738248468101,3.06472,3263.0,3262.4,3.6152]
[1738248468955,3.06472,3263.0,3262.4,4.64653202]
[1738248469905,4.24745682,3281.5,3262.7,0.7593]
[1738248469906,3.65807024,3264.3,3262.7,0.7593]
[1738248470054,3.06416,3263.6,3263.3,3.41837024]
[1738248470283,3.0642,3263.5,3263.3,3.41837024]
[1738248470488,0.7548,3263.7,3262.7,2.86837024]
[1738248470789,3.06438,3263.3,3262.8,0.55]
[1738248471123,3.06438,3263.3,3262.8,3.55]
[1738248471124,3.06463,3263.1,3262.8,3.55]
[1738248471442,3.06453,3263.2,3262.8,0.55]
[1738248471636,3.06422,3263.5,3263.0,2.86837024]
[1738248471821,3.2364496,3263.4,3263.1,0.55]
[1738248472191,3.06442,3263.3,3263.1,0.55]
[1738248472387,0.1721596,3263.4,3263.3,0.55]
[1738248473242,3.2364396,3263.4,3263.3,0.55]
[1738248474225,0.1721596,3263.4,3263.3,0.55]
[1738248474428,3.2364396,3263.4,3263.3,0.55]
[1738248475902,3.2364396,3263.4,3263.0,2.86837024]
[1738248475903,0.1721596,3263.4,3263.0,2.86837024]
[1738248476106,3.06451,3263.2,3263.0,2.86837024]
[1738248476451,3.06441,3263.3,3263.1,0.55]
[1738248476745,3.06447,3263.2,3263.1,0.55]
[1738248476948,6.3008696,3263.4,3263.1,0.55]
[1738248477634,3.06444,3263.3,3263.1,0.55]
[1738248478235,0.1721596,3263.4,3263.3,0.55]
[1738248479649,3.06456,3263.2,3263.0,2.86837024]
[1738248480002,3.06456,3263.2,3263.1,0.55]
[1738248480207,0.1721596,3263.4,3263.2,0.55]
[1738248480436,3.2364396,3263.4,3263.3,2.86837024]
[1738248480710,3.06454,3263.2,3263.0,2.86837024]
[1738248481019,3.06454,3263.2,3263.0,3.41837024]
[1738248481238,0.1721596,3263.4,3263.1,0.55]
[1738248482247,0.1721596,3263.4,3263.0,6.66428726]
[1738248482248,0.1721596,3263.4,3263.3,4.22727024]
[1738248482453,0.1721596,3263.4,3263.3,7.59895024]
[1738248482606,0.1721596,3263.4,3263.3,10.59895024]
[1738248483121,3.86699,3264.4,3263.5,0.3073]
[1738248483122,3.0634,3264.4,3263.5,0.3073]
[1738248483333,3.0634,3264.4,3263.4,3.565]
[1738248483334,3.06238,3265.5,3264.8,3.06296]